Cogmind - Beta 16 @@@ ROGUE MODE // 2025.12.30 @ 05:46:59 Player: tsintsir Result: Escaped! Performance ------------- Evolutions (9) 4500 Regions Visited (16) 3200 Robots Destroyed (96) 480 Value Destroyed (2063) 2063 Prototype IDs (44) 880 Alien Tech Used (2) 400 Bonus (3667) 3667 TOTAL SCORE: 15190 Bonus ------- Follower Combat Kills 67 Aligned with FarCom 300 Met Zhirov 300 Win 3000 Cogmind --------- Core Integrity 843/1600 Matter 300/300 Energy 98/100 System Corruption 10% Temperature Cool (0) Movement Core (50) Location To Epsilon Eridani Parts ------- > --- POWER (2) -------- (None) > --- PROPULSION (6) --- (None) > --- UTILITY (14) ----- Advanced Signal Interpreter Improved Melee Analysis Suite Advanced Melee Analysis Suite Advanced Target Analyzer Experimental Target Analyzer Advanced Hacking Suite > --- WEAPON (3) ------- (None) > --- INVENTORY (5) ---- Power Amplifier Advanced Remote Datajack Nanosword Peak State ------------ > --- POWER ------------ Light Ion Engine Hybrid Antimatter Reactor > --- PROPULSION ------- Cooled Nuclear Pulse Thruster Cooled Nuclear Pulse Thruster Cooled Nuclear Pulse Thruster Field Propulsion Array Q-thruster > --- UTILITY ---------- Power Amplifier Enhanced Optical Array Long-range Sensor Array Advanced Signal Interpreter Improved Melee Analysis Suite Advanced Melee Analysis Suite Experimental Target Analyzer Advanced Actuator Array Improved Transmission Jammer Advanced Reaction Control System Improved Phase Shifter Advanced EM Shield Shield Generator Advanced Hacking Suite > --- WEAPON ----------- Gravity Flail Gravity Flail Gravity Flail > --- INVENTORY -------- Impulse Thruster Array Power Amplifier Advanced Remote Datajack Nanosword [Rating: 161] Favorites ----------- Power Light Ion Engine Engine Light Ion Engine Power Core Micro Fission Core Reactor Hybrid Antimatter Reactor Propulsion Cooled Nuclear Pulse Thruster Treads Light Treads Flight Unit Cooled Nuclear Pulse Thruster Utility Improved Melee Analysis Suite Device Transmission Jammer Storage Large Storage Unit Processor Improved Melee Analysis Suite Hackware Advanced Hacking Suite Protection Improved Medium Armor Plating Weapon Gravity Flail Energy Gun Small Laser Ballistic Gun Light Assault Rifle Launcher Mini Grenade Launcher Special Weapon Remote Datajack Impact Weapon Gravity Flail Slashing Weapon Great Axe Special Melee Weapon Dirty Datajack Build | -11 -10 -10 -10 -9 -8 -7 -6 -5 -5 -5 -5 -4 -4 -3 -2 -1 ------- Run | Yrd Mat Min Exi Min Mat Fac Fac Fac Upp Upp Zhi Pro Fac Res Res Acc Slots Evolved 18 | . . . . . 4 2 2 2 . . . . 2 2 2 2 Power 1 | . . . . . . . . . . . . . . . 1 . Propulsion 4 | . . . . . 2 . . 1 . . . . . 1 . . Utility 12 | . . . . . 2 2 1 1 . . . . 2 1 1 2 Weapon 1 | . . . . . . . 1 . . . . . . . . . Parts Attached 88 | 7 2 4 1 2 8 11 5 7 3 . 3 3 9 6 7 10 Power 9 | 1 . 1 . . 1 3 . . 1 . . . . . 2 . Engine 6 | 1 . 1 . . 1 2 . . . . . . . . 1 . Core 2 | . . . . . . 1 . . 1 . . . . . . . Reactor 1 | . . . . . . . . . . . . . . . 1 . Propulsion 10 | 2 . 1 . . 1 . . . . . 1 2 1 1 . 1 Treads 3 | 2 . 1 . . . . . . . . . . . . . . Leg . | . . . . . . . . . . . . . . . . . Wheel . | . . . . . . . . . . . . . . . . . Hover . | . . . . . . . . . . . . . . . . . Flight 7 | . . . . . 1 . . . . . 1 2 1 1 . 1 Utility 51 | 2 2 . . . 4 6 2 6 2 . 2 . 8 5 4 8 Device 26 | 1 . . . . 1 2 1 4 1 . 2 . 5 2 3 4 Storage 4 | 1 1 . . . 1 . . . . . . . . 1 . . Processor 13 | . 1 . . . . 2 1 1 1 . . . 2 1 1 3 Hackware 1 | . . . . . . . . . . . . . . . . 1 Protection 7 | . . . . . 2 2 . 1 . . . . 1 1 . . Artifact . | . . . . . . . . . . . . . . . . . Weapon 18 | 2 . 2 1 2 2 2 3 1 . . . 1 . . 1 1 Energy Gun 2 | 2 . . . . . . . . . . . . . . . . Energy Cannon . | . . . . . . . . . . . . . . . . . Ballistic Gun 4 | . . 2 1 1 . . . . . . . . . . . . Ballistic Cannon . | . . . . . . . . . . . . . . . . . Launcher 1 | . . . . 1 . . . . . . . . . . . . Special Weapon 2 | . . . . . . . 1 . . . . . . . . 1 Impact Weapon 5 | . . . . . . 2 2 1 . . . . . . . . Slashing Weapon 3 | . . . . . 2 . . . . . . . . . 1 . Piercing Weapon . | . . . . . . . . . . . . . . . . . Special Melee Weapon 1 | . . . . . . . . . . . . 1 . . . . Unidentified Prototypes 12 | . . . . . 1 1 . 1 . . 4 . 1 1 2 1 Parts Lost 29 | . . 5 . . . 2 . 1 1 . . 3 . . . 17 Power 4 | . . 1 . . . 1 . . 1 . . . . . . 1 Propulsion 9 | . . 2 . . . . . . . . . 1 . . . 6 Utility 11 | . . . . . . 1 . 1 . . . 2 . . . 7 Weapon 5 | . . 2 . . . . . . . . . . . . . 3 Highest Loss Streak 10 | . . 3 . . . 2 . 1 1 . . 2 . . . 10 To Critical Strikes 1 | . . . . . . . . . . . . . . . . 1 Average Backups 8 | 1 3 7 7 6 10 13 13 13 13 13 13 12 4 4 3 3 Power . | . 1 . 1 1 1 . 1 1 . . . . . . . . Propulsion . | . . . . 1 . . . . . . . 1 . 1 1 . Utility 3 | . 1 3 2 2 1 5 5 6 9 9 8 6 . . . 1 Weapon 3 | . 1 2 2 2 7 6 6 5 3 3 2 2 2 1 . 1 Tool/Special . | . . . . . . . . . . . . . . . . . Unused Backups 22 | . . 1 2 . 2 7 . 4 . . . 1 . 1 4 . Power 2 | . . . . . . 1 . 1 . . . . . . . . Propulsion 1 | . . . . . . . . . . . . . . . 1 . Utility 2 | . . . 1 . . . . . . . . 1 . . . . Weapon 15 | . . 1 1 . 2 5 . 3 . . . . . 1 2 . Tool/Special 2 | . . . . . . 1 . . . . . . . . 1 . Average Slot Usage (%) 81 | . 100 94 85 84 69 75 73 67 70 70 71 80 69 93 91 82 Engine 6 | . 14 13 14 14 9 6 . . . . . . . . 3 3 Core 1 | . . . . . . . 6 5 5 5 5 5 5 4 2 . Treads 6 | . 28 22 14 14 . . . . . . . . . . . . Flight 8 | . . . . . 8 7 6 5 5 5 6 11 16 22 21 18 Device 11 | . 14 . . . . 3 19 15 17 17 14 16 12 32 30 24 Storage 7 | . 14 14 14 14 9 7 6 5 5 5 5 4 . . . . Processor 16 | . . 14 14 14 9 19 13 16 22 23 21 16 18 19 17 18 Protection 3 | . . . . . 15 14 6 5 . . 1 4 . . . . Energy Gun 1 | . 28 7 . . . . . . . . . . . . . . Ballistic Gun 7 | . . 20 28 26 2 . . . . . . . . . . . Impact Weapon 6 | . . . . . . 1 13 11 11 11 12 16 10 14 13 11 Slashing Weapon 2 | . . . . . 15 13 . . . . . . . . . . Peak Build Rating 161 | 7 7 9 11 12 55 77 84 93 89 87 104 106 111 130 147 161 Average Rating 68 | 5 7 8 9 11 53 64 79 84 86 86 92 98 83 127 134 139 On Entrance 62 | . 7 7 8 11 11 54 77 82 89 86 87 104 60 111 129 140 Avg Prop Armor Cover (%) 3 | . . . . . . . . . . . . . . 3 . . Naked Turns . | . . . . . . . . . . . . . . . . . Heaviest Build 50 | 14 19 18 15 15 47 50 49 50 50 34 48 48 28 30 42 42 Greatest Support 56 | 40 40 40 20 20 50 50 50 50 50 50 56 56 33 42 42 49 Greatest Overweight (x) 2 | . . . . . . . . . . . . 2 . . . . Average Overweight (x) . | . . . . . . . . . . . . . . . . . Largest Inventory Capacity 15 | 8 10 10 10 10 15 15 15 15 15 15 15 15 5 5 5 5 Average Capacity 10 | 7 9 10 10 10 14 15 15 15 15 15 15 14 5 5 5 5 Most Carried 15 | 2 7 10 10 10 13 15 15 15 15 15 15 15 5 5 5 5 Average Carried 9 | 1 3 8 9 10 11 14 14 14 14 14 14 13 4 4 4 4 Final Capacity 15 | 8 10 10 10 10 15 15 15 15 15 15 15 5 5 5 5 5 Final Carried 15 | 2 7 10 10 10 10 15 15 15 14 15 14 4 4 5 5 3 Class Distribution -------------------- 45% | Mutant 27% | Ninja 23% | Gladiator 3% | Sprinter Dominant Class ---------------- Mutant | -10/Materials Mutant | -10/Mines Mutant | -10/Exiles Mutant | -9/Mines Mutant | -8/Materials Gladiator | -7/Factory Mutant | -6/Factory Gladiator | -5/Factory Ninja | -5/Upper Caves Ninja | -5/Upper Caves Ninja | -5/Zhirov Gladiator | -4/Proximity Caves Ninja | -4/Factory Ninja | -3/Research Ninja | -2/Research Ninja | -1/Access Resources | -11 -10 -10 -10 -9 -8 -7 -6 -5 -5 -5 -5 -4 -4 -3 -2 -1 ----------- Run | Yrd Mat Min Exi Min Mat Fac Fac Fac Upp Upp Zhi Pro Fac Res Res Acc Matter Collected 1561 | 270 . 111 . 33 104 191 52 75 47 . . 47 91 310 110 120 Remotely . | . . . . . . . . . . . . . . . . . Salvage Created 4145 | 146 142 543 . 18 371 525 52 401 . . . . 91 803 570 483 Parts 141 | 6 11 25 . 5 21 38 . 11 . . . . 1 5 9 9 Haulers Intercepted 12 | . 1 . . . 3 1 . 1 . . . . . 2 1 3 Recyclers Shooed 3 | . 1 2 . . . . . . . . . . . . . . Parts Field Recycled . | . . . . . . . . . . . . . . . . . Retrieved Matter . | . . . . . . . . . . . . . . . . . Parts Self-Destructed 1 | . . . . . . . . . . . . 1 . . . . Prevented . | . . . . . . . . . . . . . . . . . Parts Restored . | . . . . . . . . . . . . . . . . . Kills | -11 -10 -10 -10 -9 -8 -7 -6 -5 -5 -5 -5 -4 -4 -3 -2 -1 ------- Run | Yrd Mat Min Exi Min Mat Fac Fac Fac Upp Upp Zhi Pro Fac Res Res Acc Combat Hostiles Destroyed 34 | . 2 8 . 3 6 8 1 4 . . . . . . 1 1 Melee 19 | . . . . . 6 8 . 3 . . . . . . 1 1 Guns 10 | . 2 8 . . . . . . . . . . . . . . AOE 3 | . . . . 3 . . . . . . . . . . . . Classes Destroyed 12 | 3 2 1 . . 1 4 . . . . . . 1 . . . Worker 17 | 1 . . . . . 4 . 3 . . . . 5 1 3 . Builder 2 | . . . . . . 1 . . . . . . . 1 . . Tunneler 3 | 1 . 1 . . . . . . . . . . . 1 . . Hauler 12 | . 1 . . . 3 1 . 1 . . . . . 2 1 3 Recycler 12 | 1 . 4 . . . 1 . . . . . . . 4 2 . Operator 6 | . . . . . . . . . . . . . 1 1 2 2 Watcher 10 | . . . . . . 2 . 3 . . . . . 2 2 1 Swarmer 15 | . . 6 . 3 2 4 . . . . . . . . . . Grunt 7 | . 2 2 . . 3 . . . . . . . . . . . Sentry 4 | . . . . . . 1 1 1 . . . . . . 1 . Hunter 1 | . . . . . 1 . . . . . . . . . . . Programmer 7 | . . . . . . 3 . 3 . . . . . . . 1 Best Kill Streak 6 | 2 1 3 . 3 6 3 1 3 . . . . 3 3 4 2 Combat Bots Only 3 | . 1 3 . 3 3 3 1 2 . . . . . . 1 1 Max Kills in Single Turn 3 | 1 1 2 . 3 1 2 1 1 . . . . 1 1 1 1 Gunslinging 1 | . . 1 . . . . . . . . . . . . . . Exploded 3 | . . . . 3 . . . . . . . . . . . . Melee 1 | . . . . . 1 1 . 1 . . . . . . 1 1 Uniques/NPCs Destroyed . | . . . . . . . . . . . . . . . . . Combat | -11 -10 -10 -10 -9 -8 -7 -6 -5 -5 -5 -5 -4 -4 -3 -2 -1 -------- Run | Yrd Mat Min Exi Min Mat Fac Fac Fac Upp Upp Zhi Pro Fac Res Res Acc Hostile Shots Fired 597 | . 10 72 . 3 24 120 11 34 20 . . 30 . 4 9 260 Missed 220 | . 2 12 . . 12 45 6 10 10 . . 15 . 4 7 97 Hits 377 | . 8 60 . 3 12 75 5 24 10 . . 15 . . 2 163 Projectile 377 | . 8 60 . 3 12 75 5 24 10 . . 15 . . 2 163 AOE 12 | . . 11 . . . . . 1 . . . . . . . . Critical Strikes 16 | . . . . 1 1 3 . 2 1 . . . . . . 8 Damage Taken 5561 | . 87 874 . 32 173 1051 65 396 193 . . 553 . . 36 2101 Core 1314 | . 22 184 . . 23 47 . 55 43 . . 183 . . . 757 Absorbed by Shields 357 | . . . . . . 43 25 128 . . . . . . 13 148 Core Remaining (%) 82 | 100 . . . 17 95 93 100 . . . . 67 100 100 100 52 Volleys Fired 69 | 9 10 44 . 4 . . 2 . . . . . . . . . Largest 2 | 2 2 2 . 2 . . 1 . . . . . . . . . Hottest 80 | 80 80 80 . 50 . . 5 . . . . . . . . . Shots Fired 132 | 18 20 84 . 8 . . 2 . . . . . . . . . Gun 128 | 18 20 84 . 6 . . . . . . . . . . . . Cannon . | . . . . . . . . . . . . . . . . . Launcher 2 | . . . . 2 . . . . . . . . . . . . Special 2 | . . . . . . . 2 . . . . . . . . . Kinetic 50 | . . 44 . 6 . . . . . . . . . . . . Thermal 45 | 9 10 26 . . . . . . . . . . . . . . Explosive 2 | . . . . 2 . . . . . . . . . . . . Electromagnetic 33 | 9 10 14 . . . . . . . . . . . . . . Robot Hit Streak 14 | 4 9 14 . 1 . . 2 . . . . . . . . . Robot Miss Streak 4 | 1 4 3 . 3 . . . . . . . . . . . . Penetration Max . | . . . . . . . . . . . . . . . . . Secondary Targets 1 | . . 1 . . . . . . . . . . . . . . Max Gunslinging Chain 1 | . . 1 . . . . . . . . . . . . . . Shots Hit Robots 208 | 11 13 53 . 1 14 35 6 24 . . . 3 6 13 16 13 Core Hits 67 | 4 5 24 . 3 9 11 . 3 . . . 1 . 2 3 2 Critical Kills 3 | . . . . . . . . 1 . . . . . . 1 1 Critical Parts Destroyed 22 | . . . . . . . 2 4 . . . . 2 3 6 5 Critical Strikes 32 | . . . . . 2 4 2 5 . . . . 2 3 8 6 Smash 26 | . . . . . . . 2 5 . . . . 2 3 8 6 Sever 6 | . . . . . 2 4 . . . . . . . . . . Melee Attacks 484 | . . . . . 25 62 5 47 . . . 27 11 49 60 198 Impact 400 | . . . . . . 5 5 47 . . . 25 11 49 60 198 Slashing 82 | . . . . . 25 57 . . . . . . . . . . Piercing 2 | . . . . . . . . . . . . 2 . . . . Sneak Attacks 44 | . . . . . 3 6 1 4 . . . 1 6 10 9 4 Combat Hostiles 3 | . . . . . . . 1 . . . . 1 . . 1 . Follow-up Attacks 25 | . . . . . 3 5 1 8 . . . . . 1 4 3 Damage Inflicted 11552 | 148 175 521 . 228 733 1778 192 1898 . . . 100 869 1849 1718 1343 Guns 852 | 148 175 521 . 8 . . . . . . . . . . . . Cannons . | . . . . . . . . . . . . . . . . . Explosions 220 | . . . . 220 . . . . . . . . . . . . Melee 10480 | . . . . . 733 1778 192 1898 . . . 100 869 1849 1718 1343 Ramming . | . . . . . . . . . . . . . . . . . Kinetic 266 | . . 258 . 8 . . . . . . . . . . . . Thermal 322 | 66 67 189 . . . . . . . . . . . . . . Explosive 220 | . . . . 220 . . . . . . . . . . . . Electromagnetic 264 | 82 108 74 . . . . . . . . . . . . . . Impact 8254 | . . . . . . 292 192 1898 . . . 93 869 1849 1718 1343 Slashing 2219 | . . . . . 733 1486 . . . . . . . . . . Piercing 7 | . . . . . . . . . . . . 7 . . . . Highest Corruption 10 | . . . . . . 10 . 4 4 4 4 5 . . . 10 Average Corruption 3 | . . . . . . 3 . 3 4 4 4 4 . . . 3 Corruption Purged . | . . . . . . . . . . . . . . . . . Corruption Blocked . | . . . . . . . . . . . . . . . . . Effects 85 | . . . . . . 26 . 19 4 5 4 14 . . . 13 Message Errors 24 | . . . . . . 6 . 7 3 . 1 5 . . . 2 Matter Fused 21 | . . . . . . 4 . 5 . 4 . 5 . . . 3 Heat Flow Errors 9 | . . . . . . 3 . 2 . 1 1 . . . . 2 Energy Discharges 12 | . . . . . . 5 . 2 . . . 3 . . . 2 Parts Fused 1 | . . . . . . . . . . . . . . . . 1 Data Loss (minor) 12 | . . . . . . 6 . 2 1 . 1 1 . . . 1 Data Loss (major) 3 | . . . . . . 1 . 1 . . . . . . . 1 Alerts 2 | . . . . . . . . . . . 1 . . . . 1 Misdirections 1 | . . . . . . 1 . . . . . . . . . . Overload Shots . | . . . . . . . . . . . . . . . . . Overflow Damage 5181 | . . . . 5 12 370 122 857 . . . . 734 1091 1137 853 Projectiles 31 | . . . . . . 31 . . . . . . . . . . Explosions 5 | . . . . 5 . . . . . . . . . . . . Melee 5145 | . . . . . 12 339 122 857 . . . . 734 1091 1137 853 Knockbacks 22 | . . . . . . 2 . 7 . . . 1 1 3 3 5 Impact 21 | . . . . . . 1 . 7 . . . 1 1 3 3 5 Kinetic . | . . . . . . . . . . . . . . . . . Secondary 1 | . . . . . . 1 . . . . . . . . . . Self-Inflicted Damage . | . . . . . . . . . . . . . . . . . Shots . | . . . . . . . . . . . . . . . . . Rammed . | . . . . . . . . . . . . . . . . . Targets Rammed . | . . . . . . . . . . . . . . . . . Kicked . | . . . . . . . . . . . . . . . . . Crushed . | . . . . . . . . . . . . . . . . . Highest Temperature 273 | 90 126 146 . 10 . 235 . 164 4 273 212 . . . . 160 Average Temperature 67 | 37 43 61 . 7 . 100 . 82 4 146 108 . . . . 75 Received Heat Transfer 354 | . 48 96 . 12 45 20 4 18 36 . . 27 . . 6 42 Siege Activations . | . . . . . . . . . . . . . . . . . Martial Activations . | . . . . . . . . . . . . . . . . . Shielding Activations . | . . . . . . . . . . . . . . . . . Robots Disrupted . | . . . . . . . . . . . . . . . . . Combat Hostiles . | . . . . . . . . . . . . . . . . . Robots Corrupted 21 | . . . . . . 2 1 5 . . . . 1 5 3 4 Combat Hostiles 2 | . . . . . . . 1 1 . . . . . . . . Parts Fried 53 | 2 . . . . . 3 . 5 . . . . 9 18 8 8 Impact Corruptions 104 | . . . . . . 4 2 24 . . . . 14 26 19 15 Robots Melted . | . . . . . . . . . . . . . . . . . Combat Hostiles . | . . . . . . . . . . . . . . . . . Parts Melted 4 | . . 2 . . . 2 . . . . . . . . . . Heat Transferred 725 | 150 150 425 . . . . . . . . . . . . . . Parts Sabotaged . | . . . . . . . . . . . . . . . . . Parts Stolen . | . . . . . . . . . . . . . . . . . Parts Stripped . | . . . . . . . . . . . . . . . . . Power Chain Reactions . | . . . . . . . . . . . . . . . . . Alert | -11 -10 -10 -10 -9 -8 -7 -6 -5 -5 -5 -5 -4 -4 -3 -2 -1 ------- Run | Yrd Mat Min Exi Min Mat Fac Fac Fac Upp Upp Zhi Pro Fac Res Res Acc Maximum Alert Level . | . . . . . . . . . . . . . . . . . Low Security (%) 100 | 100 100 100 . 100 100 100 100 100 . . . . 100 100 100 100 Level 1 . | . . . . . . . . . . . . . . . . . Level 2 . | . . . . . . . . . . . . . . . . . Level 3 . | . . . . . . . . . . . . . . . . . Level 4 . | . . . . . . . . . . . . . . . . . Level 5 . | . . . . . . . . . . . . . . . . . High Security . | . . . . . . . . . . . . . . . . . Max Security . | . . . . . . . . . . . . . . . . . Peak Influence 154 | 10 20 70 . 98 154 125 53 47 . . . . 15 63 78 141 Initial 65 | . 3 . . . 24 65 53 14 . . . . . . 15 38 Average 22 | . 4 9 . 10 29 29 23 6 . . . . 2 18 43 51 Influence Increases 2572 | 15 53 245 . 192 210 321 69 225 45 . . 60 47 246 288 556 Destroy 0b10 Robot/C 740 | . 40 160 . 120 120 160 20 80 . . . . . . 20 20 Destroy 0b10 Robot/NC 310 | 15 5 25 . . 15 45 . 35 . . . . 30 60 50 30 Destroy Leader 204 | . 2 30 . 20 36 46 10 28 . . . . . 8 16 8 Allied During Kill 15 | . . . . 15 . . . . . . . . . . . . Successful Hack 87 | . 6 . . 21 6 . 8 . . . . . . 12 34 . Disable Machine 45 | . . . . . . . . . . . . . 15 . 15 15 Destroy Structure 391 | . . . . 16 3 10 1 22 . . . . 2 46 93 198 Partial Spotted 225 | . . . . . . 15 15 30 . . . . . 60 45 60 Lose Combat Pursuer 555 | . . 30 . . 30 45 15 30 45 . . 60 . 60 15 225 Influence Decreases 2496 | 10 58 245 . 130 126 358 147 256 25 20 . 60 47 219 250 545 Entered New Map 237 | . 2 . . . 38 81 56 17 . 4 . . . . 12 27 Time Decay 1923 | 10 56 211 . 96 74 272 76 229 15 16 . 16 47 219 238 348 Lost Part 239 | . . 34 . . . 5 . 10 10 . . 10 . . . 170 Lost Ally 97 | . . . . 34 14 . 15 . . . . 34 . . . . Squads Dispatched 26 | . . . . . 2 8 . 4 . . . . . 2 3 7 Investigation 4 | . . . . . 1 2 . . . . . . . . 1 . Extermination 20 | . . . . . . 5 . 4 . . . . . 2 2 7 Reinforcement 2 | . . . . . 1 1 . . . . . . . . . . Assault . | . . . . . . . . . . . . . . . . . Garrison . | . . . . . . . . . . . . . . . . . Intercept . | . . . . . . . . . . . . . . . . . Searches Triggered . | . . . . . . . . . . . . . . . . . Construction Impeded . | . . . . . . . . . . . . . . . . . Haulers Reinforced . | . . . . . . . . . . . . . . . . . Active Scanning Responses . | . . . . . . . . . . . . . . . . . Cargo Convoy Interrupts 1 | . . . . . . 1 . . . . . . . . . . Stealth | -11 -10 -10 -10 -9 -8 -7 -6 -5 -5 -5 -5 -4 -4 -3 -2 -1 --------- Run | Yrd Mat Min Exi Min Mat Fac Fac Fac Upp Upp Zhi Pro Fac Res Res Acc Distress Signals 7 | . . 1 . . 1 1 . . . . . . . 1 . 3 Communications Jammed 25 | . . . . . . 9 . 5 . . . . . . 1 10 Distress Signals 24 | . . . . . . 9 . 5 . . . . . . 1 9 Times Spotted 130 | . 2 12 . 6 9 30 3 11 3 1 . 11 . 6 10 26 Peak Tracking Total 11 | . 2 3 . 4 6 11 1 3 3 3 . 7 . 3 2 8 Tactical Retreats 25 | . . 1 . . 1 3 1 2 3 . . 2 . 3 1 8 Traps | -11 -10 -10 -10 -9 -8 -7 -6 -5 -5 -5 -5 -4 -4 -3 -2 -1 ------- Run | Yrd Mat Min Exi Min Mat Fac Fac Fac Upp Upp Zhi Pro Fac Res Res Acc Traps Triggered 5 | . . . . . . 1 . . . . . . . . . 4 Indirectly . | . . . . . . . . . . . . . . . . . Trap Hack Attempts . | . . . . . . . . . . . . . . . . . Triggered . | . . . . . . . . . . . . . . . . . Disarmed . | . . . . . . . . . . . . . . . . . Reprogrammed . | . . . . . . . . . . . . . . . . . Reused . | . . . . . . . . . . . . . . . . . Traps Extracted . | . . . . . . . . . . . . . . . . . Installed . | . . . . . . . . . . . . . . . . . Triggered . | . . . . . . . . . . . . . . . . . Machines | -11 -10 -10 -10 -9 -8 -7 -6 -5 -5 -5 -5 -4 -4 -3 -2 -1 ---------- Run | Yrd Mat Min Exi Min Mat Fac Fac Fac Upp Upp Zhi Pro Fac Res Res Acc Machines Disabled 3 | . . . . . . . . . . . . . 1 . 1 1 Max in Single Turn 1 | . . . . . . . . . . . . . 1 . 1 1 Machines Repaired . | . . . . . . . . . . . . . . . . . Machines Dismantled . | . . . . . . . . . . . . . . . . . Machines Sabotaged . | . . . . . . . . . . . . . . . . . Overloaded Fab Kills . | . . . . . . . . . . . . . . . . . Hacking | -11 -10 -10 -10 -9 -8 -7 -6 -5 -5 -5 -5 -4 -4 -3 -2 -1 --------- Run | Yrd Mat Min Exi Min Mat Fac Fac Fac Upp Upp Zhi Pro Fac Res Res Acc Machines Accessed 52 | . 2 1 1 2 4 6 2 3 . 1 9 . 3 4 9 5 Terminals 32 | . 2 . . 2 4 6 1 2 . . . . 1 3 7 4 Fabricators 1 | . . . . . . . . 1 . . . . . . . . Repair Stations 1 | . . . . . . . 1 . . . . . . . . . Recycling Units . | . . . . . . . . . . . . . . . . . Scanalyzers 4 | . . . . . . . . . . . . . 1 1 1 1 Garrison Access 2 | . . . . . . . . . . . . . 1 . 1 . Total Hacks 125 | . 4 1 1 5 10 9 5 4 . 1 48 . 6 8 16 7 Successful 66 | . 1 1 1 3 2 . 2 . . 1 48 . 3 2 2 . Failed 59 | . 3 . . 2 8 9 3 4 . . . . 3 6 14 7 Catastrophic 19 | . 1 . . . 2 5 . 1 . . . . 2 1 5 2 Database Lockouts . | . . . . . . . . . . . . . . . . . Manual 51 | . 4 . 1 1 10 9 3 3 . . . . 2 3 10 5 Terminals 59 | . 4 . . 5 10 9 3 3 . . . . 2 6 12 5 Fabricators 1 | . . . . . . . . 1 . . . . . . . . Repair Stations 2 | . . . . . . . 2 . . . . . . . . . Recycling Units . | . . . . . . . . . . . . . . . . . Scanalyzers 10 | . . . . . . . . . . . . . 3 2 3 2 Garrison Access 2 | . . . . . . . . . . . . . 1 . 1 . Terminal Hacks 59 | . 1 1 1 3 1 . 1 . . 1 48 . . 1 1 . Record 37 | . . . . . . . . . . . 36 . . . 1 . Part Schematic 4 | . . . . . . . . . . . 4 . . . . . Robot Analysis 4 | . . . . . . . . . . . 4 . . . . . Prototype ID Bank 4 | . . . . . . . . . . . 4 . . . . . Open Door 3 | . . 1 . . . . . . . 1 . . . 1 . . Level Access Points 1 | . . . . 1 . . . . . . . . . . . . Branch Access Points 1 | . . . . 1 . . . . . . . . . . . . Terminal Index 3 | . 1 . . . 1 . 1 . . . . . . . . . Zone Layout 1 | . . . . 1 . . . . . . . . . . . . Proto ID Catalog 1 | . . . 1 . . . . . . . . . . . . . Fabricator Hacks . | . . . . . . . . . . . . . . . . . Repair Station Hacks 1 | . . . . . . . 1 . . . . . . . . . Scan Component 1 | . . . . . . . 1 . . . . . . . . . Recycling Unit Hacks . | . . . . . . . . . . . . . . . . . Scanalyzer 5 | . . . . . . . . . . . . . 3 1 1 . Retrieve Study 5 | . . . . . . . . . . . . . 3 1 1 . Garrison Access Hacks . | . . . . . . . . . . . . . . . . . Unauthorized Hacks 1 | . . . . . 1 . . . . . . . . . . . Terminals 1 | . . . . . 1 . . . . . . . . . . . Assimilate 1 | . . . . . 1 . . . . . . . . . . . Fabricators . | . . . . . . . . . . . . . . . . . Repair Stations . | . . . . . . . . . . . . . . . . . Recycling Units . | . . . . . . . . . . . . . . . . . Scanalyzers . | . . . . . . . . . . . . . . . . . Garrison Access . | . . . . . . . . . . . . . . . . . Data Cores Recovered 5 | . . . . . . . . . . . . . 1 1 1 2 Used 1 | . . . . . . . . . . . . . . . . 1 Hacking Detections 38 | . 2 . . 1 4 6 2 3 . . . . 3 3 9 5 Full Trace Events 5 | . . . . . 2 2 . . . . . . . . 1 . Feedback Events . | . . . . . . . . . . . . . . . . . Feedback Blocked . | . . . . . . . . . . . . . . . . . Robot Schematics Acquired . | . . . . . . . . . . . . . . . . . Robots Built . | . . . . . . . . . . . . . . . . . Authchips . | . . . . . . . . . . . . . . . . . Time . | . . . . . . . . . . . . . . . . . Total Robot Build Rating . | . . . . . . . . . . . . . . . . . Part Schematics Acquired 4 | . . . . . . . . . . . 4 . . . . . Parts Built . | . . . . . . . . . . . . . . . . . Authchips . | . . . . . . . . . . . . . . . . . Time . | . . . . . . . . . . . . . . . . . Total Part Build Rating . | . . . . . . . . . . . . . . . . . Part Studies Acquired 5 | . . . . . . . . . . . . . 3 1 1 . Parts Repaired . | . . . . . . . . . . . . . . . . . Time . | . . . . . . . . . . . . . . . . . Parts Recycled . | . . . . . . . . . . . . . . . . . Recycled Matter . | . . . . . . . . . . . . . . . . . Retrieved Matter . | . . . . . . . . . . . . . . . . . Retrieved Components . | . . . . . . . . . . . . . . . . . Parts Scanalyzed . | . . . . . . . . . . . . . . . . . Part Schematics Acquired . | . . . . . . . . . . . . . . . . . Parts Damaged . | . . . . . . . . . . . . . . . . . Bothacking | -11 -10 -10 -10 -9 -8 -7 -6 -5 -5 -5 -5 -4 -4 -3 -2 -1 ------------ Run | Yrd Mat Min Exi Min Mat Fac Fac Fac Upp Upp Zhi Pro Fac Res Res Acc Used RIF Installer . | . . . . . . . . . . . . . . . . . Robots Hacked . | . . . . . . . . . . . . . . . . . Non-combat . | . . . . . . . . . . . . . . . . . Combat . | . . . . . . . . . . . . . . . . . Robot Hacks Applied . | . . . . . . . . . . . . . . . . . Relay Couplers Released . | . . . . . . . . . . . . . . . . . Fabnet Peak Effective % . | . . . . . . . . . . . . . . . . . Robots Rewired 1 | . . . . . . . 1 . . . . . . . . . Allies Hacked . | . . . . . . . . . . . . . . . . . Hacks Repelled . | . . . . . . . . . . . . . . . . . Allies | -11 -10 -10 -10 -9 -8 -7 -6 -5 -5 -5 -5 -4 -4 -3 -2 -1 -------- Run | Yrd Mat Min Exi Min Mat Fac Fac Fac Upp Upp Zhi Pro Fac Res Res Acc Total Allies 7 | . . 3 . 3 . . 1 . . . . . . . . . Largest Group 3 | . . 3 1 3 2 . 1 . . . . . . . . . Highest-Rated Group 68 | . . 40 16 68 48 . 29 . . . . . . . . . Highest-Rated Ally 31 | . . 16 16 31 31 . 29 . . . . . . . . . Total Orders 3 | . . . . . 1 . . . . . . 2 . . . . EXPLORE 3 | . . . . . 1 . . . . . . 2 . . . . Ally Attacks 49 | . . . . 20 12 . 2 . . . . 15 . . . . Total Damage 452 | . . . . 260 153 . 39 . . . . . . . . . Kills 3 | . . . . 3 . . . . . . . . . . . . Allies Corrupted . | . . . . . . . . . . . . . . . . . Allies Melted . | . . . . . . . . . . . . . . . . . Intel | -11 -10 -10 -10 -9 -8 -7 -6 -5 -5 -5 -5 -4 -4 -3 -2 -1 ------- Run | Yrd Mat Min Exi Min Mat Fac Fac Fac Upp Upp Zhi Pro Fac Res Res Acc Active Infowar (turns) 7399 | 19 285 . . . 1 1578 187 1180 215 178 160 640 282 600 504 1570 Optics 7014 | . . . . . . 1557 187 1180 215 178 160 640 242 600 504 1551 Sensors 1217 | . . . . . . . . . . . . . 193 600 424 . IFF 38 | . . . . . . . 38 . . . . . . . . . Terrain 1082 | . . . . . . . . . 191 178 112 601 . . . . Seismic 2805 | 19 285 . . . 1 191 146 1091 194 178 66 634 . . . . Jamming 5218 | . . . . . . 358 187 1177 215 178 148 . 282 600 504 1569 Robot Analysis Total 4 | . . . . . . . . . . . 4 . . . . . Derelict Logs Recovered 5 | . . 2 . 2 . . . . . 1 . . . . . . Drone Launches 16 | . . . . . 1 . . . . . . 15 . . . . Drone Recoveries . | . . . . . . . . . . . . . . . . . Exploration | -11 -10 -10 -10 -9 -8 -7 -6 -5 -5 -5 -5 -4 -4 -3 -2 -1 ------------- Run | Yrd Mat Min Exi Min Mat Fac Fac Fac Upp Upp Zhi Pro Fac Res Res Acc Turns Passed 11747 | 108 286 1433 614 1561 422 1598 187 1180 215 178 160 664 282 600 504 1755 Spaces Moved 13182 | 44 149 735 381 817 287 2111 276 1198 401 344 307 680 659 1319 1005 2469 Core 14 | 1 . . . . . . . . . . . . . . . 13 Treads 2125 | 43 149 735 381 817 . . . . . . . . . . . . Legs . | . . . . . . . . . . . . . . . . . Wheels . | . . . . . . . . . . . . . . . . . Hover . | . . . . . . . . . . . . . . . . . Flight 11043 | . . . . . 287 2111 276 1198 401 344 307 680 659 1319 1005 2456 Fastest Speed 22 | 50 160 160 160 160 50 50 50 50 50 50 39 29 27 25 25 22 Average Speed 56 | 157 160 160 160 160 50 50 50 50 50 50 46 37 28 25 25 25 Slowest Speed 169 | 160 160 160 160 160 50 50 50 50 50 50 50 169 29 27 25 50 Overloaded Moves 135 | . . . . . . . . . . . . . . . . 135 Propulsion Burnouts . | . . . . . . . . . . . . . . . . . Robots Hopped 18 | . . . . . . 7 4 . . . . . 1 . 2 4 Potential Cave-ins 8 | . . . . . . . . . . . . 8 . . . . Cave-ins Triggered 1 | . . . . . . . . . . . . 1 . . . . Teleports 1 | . . . . . . . . . . . 1 . . . . . Exploration Rate (%) 44 | 4 25 99 78 99 27 37 8 29 64 55 63 61 14 24 29 45 Regions Visited 16 Branch Regions 7 Pre-discovered Areas 6 | . . 2 . 1 . . . . . . 3 . . . . . Known Exits Taken 15 | . 1 1 1 1 1 1 1 1 1 1 1 1 1 1 1 . Unknown Exits Taken 1 | 1 . . . . . . . . . . . . . . . . Scrap Searched 5 | . . 1 . 2 . . . . 1 1 . . . . . . Spaces Dug 158 | . . . . . 3 10 1 11 . . . 12 1 23 31 66 Terrain Destroyed 180 | . . . . 22 3 10 1 11 . . . 12 1 23 31 66 Melee 158 | . . . . . 3 10 1 11 . . . 12 1 23 31 66 Projectile . | . . . . . . . . . . . . . . . . . AOE 22 | . . . . 22 . . . . . . . . . . . . Terrain Rammed . | . . . . . . . . . . . . . . . . . Walls Destroyed . | . . . . . . . . . . . . . . . . . Machines Disabled . | . . . . . . . . . . . . . . . . . Actions | -11 -10 -10 -10 -9 -8 -7 -6 -5 -5 -5 -5 -4 -4 -3 -2 -1 --------- Run | Yrd Mat Min Exi Min Mat Fac Fac Fac Upp Upp Zhi Pro Fac Res Res Acc Total 16684 | 61 176 916 387 1064 530 2558 313 1723 413 349 323 1059 736 1529 1182 3365 Wait 2826 | . 12 125 . 240 196 359 25 463 9 5 . 344 54 161 108 725 Move 13129 | 43 148 734 380 816 286 2096 268 1197 400 343 306 678 656 1318 1000 2460 Hop 17 | . . . . . . 7 3 . . . . . 1 . 2 4 Pick Up 52 | 2 4 6 1 . 6 14 . 5 . 1 3 1 3 2 4 . Fast Attach 74 | 7 . 1 . 2 7 11 2 7 . . 3 . 8 7 8 11 Attach 25 | . . 3 . . 3 3 3 1 1 . 4 3 2 . 1 1 Detach 18 | . . . . . 4 2 4 2 . . 2 1 . 1 2 . Swap 22 | . 2 2 2 . . . 2 2 3 . 3 3 1 . . 2 Drop 77 | . . 1 4 2 8 16 . 10 . . 2 7 3 5 10 9 Fire 69 | 9 10 44 . 4 . . 2 . . . . . . . . . Melee 359 | . . . . . 20 50 4 36 . . . 21 8 35 47 138 Ram . | . . . . . . . . . . . . . . . . . Kick . | . . . . . . . . . . . . . . . . . Crush . | . . . . . . . . . . . . . . . . . Escape Stasis 16 | . . . . . . . . . . . . 1 . . . 15 Rewire . | . . . . . . . . . . . . . . . . . Trap . | . . . . . . . . . . . . . . . . . Miscellaneous . | . . . . . . . . . . . . . . . . . Route ------- -11/Scrapyard -10/Materials -10/Mines (discovered 4 exits: *Mat x2 / *Exi / *Sub) -10/Exiles (discovered 2 exits: *Min x2) -9/Mines (discovered 2 exits: *Mat x2) -8/Materials -7/Factory -6/Factory (discovered 2 exits: *Fac / *Low) -5/Factory (discovered 2 exits: *Fac / *Upp) -5/Upper Caves -5/Upper Caves -5/Zhirov -4/Proximity Caves -4/Factory (discovered 2 exits: *Res / Upp) -3/Research (discovered 3 exits: *Res / *Qua x2) -2/Research -1/Access To Epsilon Eridani History --------- Turn | Location | Event 17 | -11/Scrapyard | Discovered new exit (range 15) 109 | -11/Scrapyard | Entered Materials 318 | -10/Materials | Build established: Mutant 378 | -10/Materials | Discovered new exit (range 11) 395 | -10/Materials | Identified exit to Mines 395 | -10/Materials | Entered Mines 517 | -10/Mines | Found the Drone Emporium 527 | -10/Mines | Learned location of Zion (-6) 530 | -10/Mines | Found Prototype Device 775 | -10/Mines | Discovered new exit (range 5) 796 | -10/Mines | Identified exit to Subcaves 1046 | -10/Mines | Learned location of Recycling (-7) 1208 | -10/Mines | Assembled infested the area 1245 | -10/Mines | Discovered new exit (range 5) 1250 | -10/Mines | Identified exit to Materials 1286 | -10/Mines | Core integrity fell below 50% 1292 | -10/Mines | Core integrity fell below 20% 1324 | -10/Mines | Lost 3 parts (1p2n) 1353 | -10/Mines | Discovered exit to Materials (range 7) 1494 | -10/Mines | Discovered new exit (range 10) 1505 | -10/Mines | Identified exit to Exiles 1663 | -10/Mines | Assisted by bots powering up and referring to "LRC-V3" 1828 | -10/Mines | Entered Exiles 1828 | -10/Exiles | Accompanied by 1 ally 1856 | -10/Exiles | Discovered new exit (range 14) 1875 | -10/Exiles | Identified exit to Mines 1910 | -10/Exiles | Met 8R-AWN 1934 | -10/Exiles | Met EX-HEX 1980 | -10/Exiles | Met EX-BIN 2003 | -10/Exiles | Aligned with FarCom system 2004 | -10/Exiles | Given EX-Vault access code 2060 | -10/Exiles | Opened EX-Vault 2077 | -10/Exiles | Found Flying Fortress v7 2110 | -10/Exiles | Warned to stay clear of 0b10 Research branches 2151 | -10/Exiles | Met EX-DEC 2205 | -10/Exiles | Visited The Gauntlet 2426 | -10/Exiles | Discovered exit to Mines (range 10) 2442 | -10/Exiles | Left Exiles lab with Flying Fortress v7 2442 | -10/Exiles | Entered Mines 2442 | -9/Mines | Accompanied by 1 ally 2445 | -9/Mines | Received a Mining Laser from a helpful Derelict 2914 | -9/Mines | Learned location of Storage (-7) 2947 | -9/Mines | Found a hidden stash of uninstalled traps 2982 | -9/Mines | Discovered new exit (range 5) 2986 | -9/Mines | Identified exit to Materials 3013 | -9/Mines | Found a Scrap Suit stashed away for nefarious purposes 4003 | -9/Mines | Entered Materials 4003 | -8/Materials | Accompanied by 2 allies 4003 | -8/Materials | Evolved 4 slots: Propulsion x2, Utility x2 4007 | -8/Materials | Identified Bomb Drone Bay 4008 | -8/Materials | Led the pair of lost Derelicts to an unsafe place 4419 | -8/Materials | Discovered new exit (range 10) 4423 | -8/Materials | Identified exit to Factory 4425 | -8/Materials | Entered Factory 4425 | -7/Factory | Evolved 2 slots: Utility x2 4921 | -7/Factory | Build established: Gladiator 5250 | -7/Factory | Cargo convoy interrupted 5714 | -7/Factory | System corruption reached 10% 5965 | -7/Factory | Build established: Mutant 5974 | -7/Factory | Discovered new exit (range 6) 6022 | -7/Factory | Identified exit to Factory 6023 | -7/Factory | Entered another Factory area 6023 | -6/Factory | Evolved 2 slots: Utility x1, Weapon x1 6027 | -6/Factory | Discovered new exit (range 14) 6077 | -6/Factory | Identified exit to Lower Caves 6184 | -6/Factory | Discovered new exit (range 17) 6192 | -6/Factory | Identified exit to Factory 6202 | -6/Factory | Spotted B-75 Beast 6210 | -6/Factory | Entered another Factory area 6210 | -5/Factory | Evolved 2 slots: Propulsion x1, Utility x1 6453 | -5/Factory | Discovered new exit (range 8) 6468 | -5/Factory | Identified exit to Factory 6677 | -5/Factory | Build established: Gladiator 7104 | -5/Factory | Discovered new exit (range 4) 7106 | -5/Factory | Identified exit to Upper Caves 7390 | -5/Factory | Entered Upper Caves 7460 | -5/Upper Caves | Attracted the attention of an 0b10 outpost 7473 | -5/Upper Caves | Spotted B-75 Beast 7480 | -5/Upper Caves | Encountered a Warlord checkpoint 7522 | -5/Upper Caves | Attracted the attention of an 0b10 checkpoint 7603 | -5/Upper Caves | Discovered new exit (range 5) 7605 | -5/Upper Caves | Identified exit to Upper Caves 7605 | -5/Upper Caves | Entered another Upper Caves area 7640 | -5/Upper Caves | Encountered a Warlord checkpoint 7662 | -5/Upper Caves | Learned location of 1 exit from Factory 7719 | -5/Upper Caves | Build established: Ninja 7778 | -5/Upper Caves | Discovered new exit (range 11) 7783 | -5/Upper Caves | Identified exit to Zhirov 7783 | -5/Upper Caves | Entered Zhirov 7783 | -5/Zhirov | Discovered new exit (range 4) 7786 | -5/Zhirov | Identified exit to Proximity Caves 7799 | -5/Zhirov | Met Zhirov 7811 | -5/Zhirov | Learned location of Quarantine (-3) 7811 | -5/Zhirov | Learned location of Testing (-2) 7811 | -5/Zhirov | Learned location of Command (-1) 7820 | -5/Zhirov | Zhirov requested help retrieving the SGEMP Prototype 7838 | -5/Zhirov | Found Alien Artifact 7839 | -5/Zhirov | Identified Transdimensional Reconstructor 7839 | -5/Zhirov | Warped through subspace 7877 | -5/Zhirov | Found Alien Artifact 7877 | -5/Zhirov | Identified Integrated Reactor 7877 | -5/Zhirov | Installed Integrated Reactor, increased core energy generation (+10) 7943 | -5/Zhirov | Entered Proximity Caves 8177 | -4/Proximity Caves | Build established: Gladiator 8506 | -4/Proximity Caves | Spotted B-86 Titan 8552 | -4/Proximity Caves | Attracted the attention of an 0b10 outpost 8581 | -4/Proximity Caves | Crushed by falling debris 8602 | -4/Proximity Caves | Lost 13 allies 8605 | -4/Proximity Caves | Discovered exit to Factory (range 7) 8607 | -4/Proximity Caves | Entered Factory 8607 | -4/Factory | Evolved 2 slots: Utility x2 8608 | -4/Factory | Identified exit to Upper Caves 8677 | -4/Factory | Discovered new exit (range 2) 8677 | -4/Factory | Identified exit to Research 8889 | -4/Factory | Entered Research 8889 | -3/Research | Evolved 2 slots: Propulsion x1, Utility x1 8984 | -3/Research | Discovered new exit (range 7) 8987 | -3/Research | Identified exit to Quarantine 8990 | -3/Research | Build established: Ninja 8995 | -3/Research | Discovered exit to Quarantine (range 9) 9442 | -3/Research | Found Unknown Protection 9442 | -3/Research | Identified Adv. Powered Armor 9448 | -3/Research | Discovered new exit (range 9) 9450 | -3/Research | Identified exit to Research 9489 | -3/Research | Entered another Research area 9489 | -2/Research | Evolved 2 slots: Power x1, Utility x1 9795 | -2/Research | Found Prototype Processor 9795 | -2/Research | Identified Exp. Target Analyzer 9966 | -2/Research | Discovered new exit (range 16) 9993 | -2/Research | Identified exit to Access 9993 | -2/Research | Entered Access 9993 | -1/Access | Evolved 2 slots: Utility x2 10989 | -1/Access | Spotted B-99 Colossus 11266 | -1/Access | Found Prototype Device 11266 | -1/Access | Identified Adv. EM Shield 11506 | -1/Access | Spotted B-99 Colossus 11542 | -1/Access | Spotted B-99 Colossus 11542 | -1/Access | Spotted B-99 Colossus 11569 | -1/Access | Discovered new exit (range 4) 11572 | -1/Access | Identified exit to Surface 11592 | -1/Access | Lost 10 parts (1p4n4u1w) 11747 | -1/Access | System corruption reached 10% 11748 | *** | Escaped! Last Messages --------------- 11734_ Cld. Nuclear Pulse Thruster destroyed. 11734_ Knocked back. 11734_ Adv. Melee Analysis Suite destroyed. 11734_ Knocked back. 11734_ Penetrated by Slug. 11734_ Impulse Thruster Array destroyed. 11734_ Gravity Flail destroyed. 11734_ Slug penetrates Sealed Barrier. 11736_ Dropped Hyb. Antimatter Reactor. 11737_ Dropped Adv. Actuator Array. 11740_ System corrupted: Energy discharge (-40). 11741_ Penetrated by Slug. 11741_ Slug penetrates Sealed Barrier. 11741_ Penetrated by Slug. 11741_ Slug penetrates Sealed Barrier. 11742_ K-01 Serf cleans the Main Access Lift. 11746_ Slug penetrates Sealed Heavy Doors. 11746_ Penetrated by Slug. 11746_ Slug penetrates Sealed Barrier. [Achievement: Epsilon Run] Map ----- +----------------------------------------------------+ | ?????????????????????????????????????????????????? | | ?????????????????????????????????????????????????? | | ?????????????????????????????????????????????????? | | ?????????????????????????????????????????????????? | | ?????????????????????????????????????????????????? | | ?????????????????????????????????????????????????? | | ?????????????????????????????????????????????????? | | ?????????????????????????????????????????????????? | | ?????????????????????????????????????????????????? | | ?????????????????????????????????????????????????? | | ?????????????????????????????????###+############# | | ?????????????????????????????????? | | ???????????????????????????????p???? p ???? | | ?????????????????????????????????????# ###/###### | | ?????????????????????????????????????# ## """ | | ?????????????????????????????????????# ## """" | | ?????????????????????????????????????# ## ""F | | ?????????????????????????????????????# ## """ | | ?????????????????????????????????????# ## ! | | ????????????????????????????????????## ## ] ! | | ????????????????????""""""""""""????# # != | | ????????????????????# % #????# # | | ????????????????????# % #????# " + = " | | ????????????????????# #????# # """ | | ????????????????????# #????##! ## """ | | ????????????????????# @" #?????#%=## " | | ????????????????????# "k #?????#*|#"#####"## | | ????????????????????# #?????# "##???###? | | ????????????????????# #?????# ##???????? | | ????????????????????# #?????# ##???????? | | ????????????????????#"""""""*%"#?????# "#???????? | | ???????????????????????????"! "??????# ##???????? | | ??????????????????????????""p""??????# #????????? | | ????????????????????#""""""p ""#?????# #?????#### | | ????????????????????# % % #?????# p#?????# | | ????????????????????# % #?????# p####### | | ????????????????????# BB #?????#p | | ????????????????????# BB #?????# | | ????????????????????# BB % #?????########## | | ????????????????????# BB #??????????????# | | ????????????????????# % #???????########## | | ????????????????????#### ####???????# ] # | | ???????????????????????# ##?????????#!! # | | ???????????????????????# "#?????????#!! " | | ???????????????????????# ##?????????#!! # | | ???????????????????????# "#?????????# # | | ???????????????????????# "########### # | | ???????????????????????# # ## # | | ???????????????????????# # ## # | | ???????????????????????# # " ## # | +----------------------------------------------------+ Best States ------------- Heat Dissipation 52 Energy Generation 38 Energy Capacity 1125 Matter Stores 300 Matter Capacity 300 Sight Range 22 Robot Scan Range 18 Terrain Scan Range 16 Terrain Scan Density 210 Jamming Range 14 Power Amplification 40 Armor Coverage 450 Phase Shifting 10 Evasion (%) 87 Melee Accuracy 22 Target Analysis 14 Recoil Reduction 2 Matter Filtering 50 Force Boost 20 Offensive Hacking 14 Item Schematics ----------------- Assault Drone Bay | -5/Zhirov | Free Exp. Heat Sink | -5/Zhirov | Free Exp. Optical Array | -5/Zhirov | Free Imp. Arc Thrower | -5/Zhirov | Free Robot Schematics ------------------ None Fabricated ------------ Nothing Repaired ---------- Nothing Studied --------- Mic. Fission Core | -4/Factory | Hacked Hardcell Cannon | -4/Factory | Hacked Power Sword | -4/Factory | Hacked Q-thruster | -3/Research | Hacked Lgt. Ion Engine | -2/Research | Hacked Alien Tech Used ----------------- Transdimensional Reconstructor Integrated Reactor Achievements -------------- Epsilon Run Rockin' Loadout Subspace Traveler The Science Guy Challenges ------------ None Game ------ Seed EnhancedMetaReactor Manual? 0 Play Time 03:15:40 Cumulative 70.0 hours Start 2025.12.30 @ 02:02:52 End 2025.12.30 @ 05:46:59 Sessions 1 Manual Loads 0 Difficulty Rogue Special Mode None Game No. 61 Rogue 61 Adventurer 0 Explorer 0 Win Type 0 Total 2 Types 1/0/0/1/0/0/0/0/0/0 Lore% 46 Gallery% 47 Achievement% 36 Wizard Run 0 Options --------- Layout 0 ASCII 0 Keyboard 0 Movement Mouse Keybinds 0 Fullscreen 2 Font 24/Smallcaps Map View 76x50 Zoom Use 0% Tactical HUD 1 Map Filters NONE Filters NONE Steam 1 RUN: dcd8be26-7098-468a-bb12-c3227165cf7a